Service area,Service sub division,TVBC Service,Expense type,Detailed expense type,TVBC account code,Date Paid,Transaction Reference,Nett Value,Supplier Name
Cultural & Related,Recreation & Sport,Community and Leisure ,Premises related Expenditure,Water Services,Water And Sewerage Charges,07/08/2014,132461,-2284.83,Southern Water
Central Services to the Public,Management & Support Services,Estates and Economic Development ,Premises related Expenditure,Energy Costs,Gas,21/08/2014,132132,-1193.6,Total Gas & Power Ltd
Central Services to the Public,Management & Support Services,Community and Leisure ,Supplies & Services,Grants & Subscriptions,Grants,07/08/2014,132476,500,Wellow Village Hall
Planning & Development,Community Development,Community and Leisure ,Supplies & Services,Grants & Subscriptions,Grants,20/08/2014,133374,500,Enham Trust
Planning & Development,Economic Development,Estates and Economic Development ,Supplies & Services,Grants & Subscriptions,Grants,13/08/2014,132936,500,Personal data - Data Protection Act 1998
Planning & Development,Economic Development,Estates and Economic Development ,Supplies & Services,Grants & Subscriptions,Grants,13/08/2014,132937,500,Personal data - Data Protection Act 1998
Planning & Development,Economic Development,Estates and Economic Development ,Supplies & Services,Grants & Subscriptions,Grants,13/08/2014,132939,500,The Travelling Cupcake
Planning & Development,Community Development,Community and Leisure ,Supplies & Services,Grants & Subscriptions,Grants,27/08/2014,133858,500,Wallop Amateur Singers & Performers
Central Services to the Public,Management & Support Services,IT,Supplies & Services,"Printing, Stationery & General Office Expenses",Stationery,07/08/2014,132112,417.73,Supplies Team Ltd
Central Services,Corporate & Democratic Core,Corporate & Democratic,Supplies & Services,Services,Professional Fees,07/08/2014,132148,418.5,N2 Check Limited
Environmental & Regulatory,Waste management,Environmental,Supplies & Services,"Equipment, Furniture & Materials",Purchase Equip + Materials,14/08/2014,130773,418.56,Daniels Healthcare Ltd
Central Services to the Public,Management & Support Services,Estates and Economic Development ,Supplies & Services,"Equipment, Furniture & Materials",Equipment Hire,14/08/2014,132692,420,Hampshire Plant & Access Limited
Central Services to the Public,Management & Support Services,Estates and Economic Development ,Supplies & Services,"Equipment, Furniture & Materials",Purchase Materials (Job Cost),06/08/2014,2720,421.11,Howdens Joinery Co
Central Services to the Public,Local Tax Collection,Revenues,Supplies & Services,"Printing, Stationery & General Office Expenses",Stationery,07/08/2014,132104,19.22,Supplies Team Ltd
Central Services to the Public,Local Tax Collection,Revenues,Supplies & Services,"Printing, Stationery & General Office Expenses",Stationery,07/08/2014,132104,57.65,Supplies Team Ltd
Housing Services,Housing Benefits ,Revenues,Supplies & Services,"Printing, Stationery & General Office Expenses",Stationery,07/08/2014,132104,57.65,Supplies Team Ltd
Housing Services,Housing Benefits ,Revenues,Supplies & Services,Communications & Computing,Purchase Of Telephones ,07/08/2014,132104,115.46,Supplies Team Ltd
Central Services to the Public,Local Tax Collection,Revenues,Supplies & Services,"Printing, Stationery & General Office Expenses",Stationery,07/08/2014,132104,57.64,Supplies Team Ltd
Central Services to the Public,Local Tax Collection,Revenues,Supplies & Services,Communications & Computing,Purchase Of Telephones ,07/08/2014,132104,115.46,Supplies Team Ltd
Central Services to the Public,Management & Support Services,Estates and Economic Development ,Premises related Expenditure,Repairs Alterations & Maintenance of Buildings,Building Maint - Non Estates,21/08/2014,133246,425,Prestige Fire Door Services Ltd
Cultural & Related,Open Spaces,Environmental,Transport Related Expenditure,Contract Hire and Operating Leases,Vehicles-Hired\Leased,07/08/2014,131658,425,Pitter Self Drive Ltd
Environmental & Regulatory,Waste management,Environmental,Transport Related Expenditure,Direct Transport Costs,Repair Materials,21/08/2014,132138,429,Dennis Eagle Ltd
Central Services to the Public,Management & Support Services,Environmental,Transport Related Expenditure,Direct Transport Costs,Workshop Consumables,28/08/2014,133036,429.05,Boc  Ltd
Central Services to the Public,Management & Support Services,Finance,Supplies & Services,"Printing, Stationery & General Office Expenses",Photocopying Costs,28/08/2014,133512,430.24,Ricoh Uk Ltd
Cultural & Related,Culture & Heritage,Estates and Economic Development ,Premises related Expenditure,Repairs Alterations & Maintenance of Buildings,Planned Maintenance - Non Est,14/08/2014,133018,432,Gillett & Johnston (Croydon) Ltd
Central Services to the Public,Local Tax Collection,Revenues,Supplies & Services,"Equipment, Furniture & Materials",Equipment Lease Rentals,07/08/2014,132337,43.69,Ricoh Uk Ltd
Central Services to the Public,Local Tax Collection,Revenues,Supplies & Services,"Equipment, Furniture & Materials",Equipment Lease Rentals,07/08/2014,132337,174.74,Ricoh Uk Ltd
Housing Services,Housing Benefits ,Revenues,Supplies & Services,"Equipment, Furniture & Materials",Equipment Lease Rentals,07/08/2014,132337,109.22,Ricoh Uk Ltd
Central Services to the Public,Local Tax Collection,Revenues,Supplies & Services,"Equipment, Furniture & Materials",Equipment Lease Rentals,07/08/2014,132337,109.21,Ricoh Uk Ltd
Cultural & Related,Open Spaces,Environmental,Supplies & Services,"Printing, Stationery & General Office Expenses",Training Courses,07/08/2014,132086,525,Acorn Rural Training
Central Services,Corporate & Democratic Core,Corporate & Democratic,Supplies & Services,"Printing, Stationery & General Office Expenses",Postage Costs,21/08/2014,132134,439.81,Royal Mail
Central Services to the Public,Management & Support Services,Housing and Environmental Health ,Supplies & Services,"Printing, Stationery & General Office Expenses",Training Courses,14/08/2014,132690,445,Ebis-Hse
Cultural & Related,Recreation & Sport,Community and Leisure ,Premises related Expenditure,Grounds Maintenance Costs,Gm - Additional Works,28/08/2014,133010,453.4,Signway Supplies (Datchet Ltd)
Central Services to the Public,Management & Support Services,Chief Executive's,Employees,Indirect Employee Expenses,Temporary Staff,14/08/2014,129008,463.98,Personnel Selection
Central Services to the Public,Management & Support Services,Chief Executive's,Employees,Indirect Employee Expenses,Temporary Staff,14/08/2014,129598,463.98,Personnel Selection
Central Services to the Public,Management & Support Services,Finance,Supplies & Services,"Printing, Stationery & General Office Expenses",Postage Costs,07/08/2014,131739,466.08,Neopost Finance Ltd
Central Services to the Public,Management & Support Services,Legal & Democratic,Supplies & Services,Grants & Subscriptions,Subscriptions,28/08/2014,133847,470,Veale Wasbrough Vizard
Central Services to the Public,Management & Support Services,Environmental,Transport Related Expenditure,Direct Transport Costs,Red Derv,28/08/2014,133833,538.11,Wessex Petroleum Limited
Central Services,Corporate & Democratic Core,Corporate & Democratic,Supplies & Services,"Equipment, Furniture & Materials",Purchase Equip + Materials,28/08/2014,133809,475,Prosigns (Uk)
Central Services to the Public,Management & Support Services,IT,Supplies & Services,Communications & Computing,Software Maintenance,28/08/2014,132917,480,Ncc Services Limited
Central Services to the Public,Management & Support Services,Environmental,Supplies & Services,"Printing, Stationery & General Office Expenses",Photocopying Costs,28/08/2014,133513,483.04,Ricoh Uk Ltd
Central Services to the Public,Local Tax Collection,Revenues,Supplies & Services,"Printing, Stationery & General Office Expenses",Postage Costs,28/08/2014,133508,17.15,Royal Mail
Central Services to the Public,Local Tax Collection,Revenues,Supplies & Services,"Printing, Stationery & General Office Expenses",Postage Costs,28/08/2014,133508,216.27,Royal Mail
Housing Services,Housing Benefits ,Revenues,Supplies & Services,"Printing, Stationery & General Office Expenses",Postage Costs,28/08/2014,133508,125.28,Royal Mail
Central Services to the Public,Local Tax Collection,Revenues,Supplies & Services,"Printing, Stationery & General Office Expenses",Postage Costs,28/08/2014,133508,125.27,Royal Mail
Environmental & Regulatory,Regulatory Services,Estates and Economic Development ,Premises related Expenditure,Water Services,Water And Sewerage Charges,28/08/2014,133779,580.81,Southern Water
Central Services to the Public,Management & Support Services,Legal & Democratic,Supplies & Services,"Printing, Stationery & General Office Expenses",Stationery,21/08/2014,132106,447.21,Supplies Team Ltd
Environmental & Regulatory,Regulatory Services,Legal & Democratic,Supplies & Services,"Printing, Stationery & General Office Expenses",Stationery,21/08/2014,132106,38.89,Supplies Team Ltd
Central Services to the Public,Management & Support Services,IT,Supplies & Services,Communications & Computing,Hardware Maintenance,21/08/2014,133286,498.75,Daisy Communications Ltd
External Trading Accounts,Industrial Estates,Estates and Economic Development ,Supplies & Services,Miscellaneous Expenses,Waste Collection,14/08/2014,132698,499.8,Basingstoke Skip Hire & Sthrn Waste Mgt Ltd
Cultural & Related,Recreation & Sport,Community and Leisure ,Premises related Expenditure,Rents,Premises Hire,14/08/2014,131085,500,Valley Leisure Ltd
Cultural & Related,Open Spaces,Environmental,Transport Related Expenditure,Direct Transport Costs,Repair Materials,21/08/2014,132757,512.52,T H White Ltd
Central Services to the Public,Management & Support Services,Chief Executive's,Supplies & Services,"Printing, Stationery & General Office Expenses",Photocopying Allocation,14/08/2014,131199,521.75,Ricoh Uk Ltd
Environmental & Regulatory,Waste management,Environmental,Employees,Indirect Employee Expenses,Agency Staff - Waged Posts,21/08/2014,133385,527.05,Abacus Employment Services Ltd
Central Services to the Public,Management & Support Services,IT,Supplies & Services,Communications & Computing,Computer Hardware,28/08/2014,133933,527.5,Essentra Security
Central Services to the Public,Management & Support Services,Estates and Economic Development ,Premises related Expenditure,Repairs Alterations & Maintenance of Buildings,Building Maint - Non Estates,07/08/2014,132355,530,Regal Environment Systems Ltd
Central Services to the Public,Management & Support Services,Estates and Economic Development ,Third Party Payments,Other Establishments,Private Contractors,21/08/2014,133259,644,Ashine Cleaning Services Ltd
Environmental & Regulatory,Street Cleansing (not chargeable to Highways),Environmental,Transport Related Expenditure,Direct Transport Costs,Diesel,28/08/2014,133503,547.57,Fuel Card Services Ltd
Central Services to the Public,Management & Support Services,Estates and Economic Development ,Third Party Payments,Other Establishments,Private Contractors,07/08/2014,132356,550,Pci Comms
Environmental & Regulatory,Regulatory Services,Housing and Environmental Health ,Supplies & Services,Grants and subscriptions,Capital Grants,21/08/2014,133413,680,Epw Construction
"Highways, Roads & Transport",Parking Services,Plan Pol & Transport,Supplies & Services,"Equipment, Furniture & Materials",Purchase Equip + Materials,21/08/2014,132904,568.3,E-Buyer (Uk) Limited
Environmental & Regulatory,Street Cleansing (not chargeable to Highways),Environmental,Supplies & Services,"Equipment, Furniture & Materials",Purchase Equip + Materials,28/08/2014,132458,574,Sweeperhire
Planning & Development,Planning Policy,Plan Pol & Transport,Supplies & Services,"Printing, Stationery & General Office Expenses",Photocopying Costs,28/08/2014,133948,583.41,Ricoh Uk Ltd
Environmental & Regulatory,Waste management,Environmental,Transport Related Expenditure,Direct Transport Costs,Repair Materials,21/08/2014,132926,587.37,Dennis Eagle Ltd
Cultural & Related,Open Spaces,Environmental,Transport Related Expenditure,Direct Transport Costs,Repair Materials,07/08/2014,131738,588.24,Transload Ltd
Central Services to the Public,Management & Support Services,Estates and Economic Development ,Third Party Payments,Other Establishments,Private Contractors,21/08/2014,133427,594,C R Ralph (Builders)
Planning & Development,Planning Policy,Plan Pol & Transport,Supplies & Services,"Printing, Stationery & General Office Expenses",Stationery,21/08/2014,132105,135.66,Supplies Team Ltd
Planning & Development,Planning Policy,Plan Pol & Transport,Supplies & Services,"Printing, Stationery & General Office Expenses",Stationery,21/08/2014,132105,108.13,Supplies Team Ltd
"Highways, Roads & Transport",Highways and roads - maintenance,Plan Pol & Transport,Supplies & Services,"Printing, Stationery & General Office Expenses",Stationery,21/08/2014,132105,113.05,Supplies Team Ltd
"Highways, Roads & Transport",Highways and roads - maintenance,Plan Pol & Transport,Supplies & Services,Miscellaneous Expenses,Health And Safety,21/08/2014,132105,9.22,Supplies Team Ltd
Planning & Development,Economic Development,Estates and Economic Development ,Supplies & Services,"Printing, Stationery & General Office Expenses",Training Courses,07/08/2014,132286,620.83,Covergirl Academy
Planning & Development,Community Development,Community and Leisure ,Supplies & Services,Grants & Subscriptions,Grants,20/08/2014,133379,750,Romsey Archers
Planning & Development,Community Development,Community and Leisure ,Supplies & Services,Grants & Subscriptions,Grants,20/08/2014,133375,750,Braishfield Village Hall Committee
Central Services to the Public,Management & Support Services,Finance,Supplies & Services,"Printing, Stationery & General Office Expenses",Photocopying Costs,28/08/2014,133515,641.32,Ricoh Uk Ltd
Central Services to the Public,Management & Support Services,Estates and Economic Development ,Third Party Payments,Other Establishments,Private Contractors,21/08/2014,133261,651.8,Nuserve Ltrd
Planning & Development,Community Development,Estates and Economic Development ,Supplies & Services,Miscellaneous Expenses,Photography Fees,07/08/2014,132117,782.94,Personal data - Data Protection Act 1998
Planning & Development,Development Control,Planning & Building,Supplies & Services,Miscellaneous Expenses,Planning Appeal Costs,27/08/2014,131304,654.5,Tanner & Tilley Planning Consultants
Central Services to the Public,Management & Support Services,Estates and Economic Development ,Premises related Expenditure,Repairs Alterations & Maintenance of Buildings,Planned Maintenance - Non Est,07/08/2014,132289,672.83,Cofely Ltd
Cultural & Related,Culture & Heritage,Community and Leisure ,Premises related Expenditure,Cleaning and domestic supplies,Contract Cleaning - Non Estates,07/08/2014,132353,686,Nuserve Ltrd
Environmental & Regulatory,Regulatory Services,Housing and Environmental Health ,Supplies & Services,Grants and subscriptions,Capital Grants,14/08/2014,133065,826.84,P Welbourne-Jones Ltd
Housing Services,Homelessness,Housing and Environmental Health ,Supplies & Services,Miscellaneous Expenses,Bed & Breakfast,14/08/2014,132920,830,Church Mews Guest House
"Highways, Roads & Transport",Parking Services,Plan Pol & Transport,Premises related Expenditure,Repairs Alterations & Maintenance of Buildings,Car Parks - Signs + Lines,21/08/2014,133011,700.6,Signway Supplies (Datchet Ltd)
Cultural & Related,Recreation & Sport,Community and Leisure ,Premises related Expenditure,Energy Costs,Fuel Oil,28/08/2014,132088,818.05,Wessex Petroleum Limited
Environmental & Regulatory,Waste management,Environmental,Employees,Indirect Employee Expenses,Agency Staff - Waged Posts,14/08/2014,132905,724.8,Abacus Employment Services Ltd
Environmental & Regulatory,Waste management,Environmental,Employees,Indirect Employee Expenses,Agency Staff - Waged Posts,07/08/2014,132361,725.7,Active Staff Ltd
Central Services to the Public,Elections,Legal & Democratic,Supplies & Services,"Printing, Stationery & General Office Expenses",Postage Costs,14/08/2014,132720,726.24,Financial Data Management Plc
Cultural & Related,Open Spaces,Environmental,Third Party Payments,Other Establishments,Private Contractors,07/08/2014,132349,888.33,Ivan Gibson Agricultural Contractor
Central Services to the Public,Management & Support Services,IT,Transport Related Expenditure,Contract Hire and Operating Leases,Officer lease cars,28/08/2014,133530,395.5,Arnold Clark Finance Ltd
Central Services to the Public,Management & Support Services,Finance,Transport Related Expenditure,Contract Hire and Operating Leases,Officer lease cars,28/08/2014,133530,502.54,Arnold Clark Finance Ltd
External Trading Accounts,Industrial Estates,Estates and Economic Development ,Supplies & Services,Services,Legal Fees,20/08/2014,131744,750,Denton Ukmea Llp
Central Services to the Public,Management & Support Services,IT,Supplies & Services,Communications & Computing,Computer Hardware,21/08/2014,133489,752.34,E-Buyer (Uk) Limited
Environmental & Regulatory,Waste management,Environmental,Employees,Indirect Employee Expenses,Agency Staff - Waged Posts,28/08/2014,133836,764.55,365 Supply Ltd
Central Services to the Public,Management & Support Services,Estates and Economic Development ,Supplies & Services,Communications & Computing,Mobile Telephone Charges,14/08/2014,131063,83.9,Vodafone Limited
Cultural & Related,Culture & Heritage,Estates and Economic Development ,Supplies & Services,Communications & Computing,Mobile Telephone Charges,14/08/2014,131063,3.52,Vodafone Limited
Cultural & Related,Culture & Heritage,Estates and Economic Development ,Supplies & Services,Communications & Computing,Mobile Telephone Charges,14/08/2014,131063,3.45,Vodafone Limited
Central Services to the Public,Management & Support Services,Estates and Economic Development ,Supplies & Services,Communications & Computing,Mobile Telephone Charges,14/08/2014,131063,2.19,Vodafone Limited
Central Services to the Public,Management & Support Services,Estates and Economic Development ,Supplies & Services,Communications & Computing,Mobile Telephone Charges,14/08/2014,131063,1.53,Vodafone Limited
Central Services to the Public,Management & Support Services,Estates and Economic Development ,Supplies & Services,Communications & Computing,Mobile Telephone Charges,14/08/2014,131063,652.34,Vodafone Limited
Central Services to the Public,Management & Support Services,Estates and Economic Development ,Supplies & Services,Communications & Computing,Mobile Telephone Charges,14/08/2014,131063,2.73,Vodafone Limited
Environmental & Regulatory,Regulatory Services,Estates and Economic Development ,Supplies & Services,Communications & Computing,Mobile Telephone Charges,14/08/2014,131063,3.06,Vodafone Limited
Planning & Development,Planning Policy,Plan Pol & Transport,Supplies & Services,Communications & Computing,Blackberry Charges,14/08/2014,131063,14.45,Vodafone Limited
Environmental & Regulatory,Waste management,Environmental,Employees,Indirect Employee Expenses,Agency Staff - Waged Posts,07/08/2014,132362,769.95,Active Staff Ltd
Central Services to the Public,Management & Support Services,Estates and Economic Development ,Premises related Expenditure,Repairs Alterations & Maintenance of Buildings,Planned Maintenance - Non Est,21/08/2014,133428,195,Clouds Environmental Consultancy Ltd
Cultural & Related,Recreation & Sport,Community and Leisure ,Premises related Expenditure,Repairs Alterations & Maintenance of Buildings,Planned Maintenance - Non Est,21/08/2014,133428,390,Clouds Environmental Consultancy Ltd
Cultural & Related,Culture & Heritage,Community and Leisure ,Premises related Expenditure,Repairs Alterations & Maintenance of Buildings,Planned Maintenance - Non Est,21/08/2014,133428,195,Clouds Environmental Consultancy Ltd
Cultural & Related,Culture & Heritage,Community and Leisure ,Supplies & Services,"Printing, Stationery & General Office Expenses",Postage Costs,21/08/2014,133034,787,Royal Mail
Central Services to the Public,Management & Support Services,Estates and Economic Development ,Third Party Payments,Other Establishments,Private Contractors,21/08/2014,133256,945,Ashine Cleaning Services Ltd
Cultural & Related,Open Spaces,Environmental,Supplies & Services,"Equipment, Furniture & Materials",Purchase Equip + Materials,07/08/2014,132348,799.65,Nomix Enviro
Central services to the public,"General Grants, Bequests and Donations",Housing and Environmental Health ,Supplies & Services,Grants and subscriptions,Capital Grants,13/08/2014,132952,961.08,West Tytherley Parish Council Millennium Fund
Central Services to the Public,Management & Support Services,Estates and Economic Development ,Premises related Expenditure,Water Services,Water And Sewerage Charges,21/08/2014,133238,967.78,Southern Water
Central Services to the Public,Management & Support Services,Estates and Economic Development ,Supplies & Services,"Equipment, Furniture & Materials",Purchase Tools,14/08/2014,132864,811.84,Wolseley Uk Limited
Planning & Development,Community Development,Community and Leisure ,Supplies & Services,Grants & Subscriptions,Grants,21/08/2014,133545,978,The Conservation Volunteers
Environmental & Regulatory,Street Cleansing (not chargeable to Highways),Environmental,Employees,Indirect Employee Expenses,Agency Staff - Waged Posts,21/08/2014,133049,821.25,The Works Staffing Solutions Ltd
Environmental & Regulatory,Waste management,Environmental,Employees,Indirect Employee Expenses,Agency Staff - Waged Posts,07/08/2014,132364,828.8,Simple Recruitment Services Ltd
Environmental & Regulatory,Street Cleansing (not chargeable to Highways),Environmental,Employees,Indirect Employee Expenses,Agency Staff - Waged Posts,21/08/2014,133048,832.5,The Works Staffing Solutions Ltd
Environmental & Regulatory,Community Development,Community and Leisure ,Supplies & Services,Miscellaneous Expenses,Promotions / Special Events,06/08/2014,132093,1000,Alamein Community Association
Central Services,Corporate & Democratic Core,Corporate & Democratic,Supplies & Services,Services,Professional Advice,07/08/2014,132092,833.33,Coffin Mew Llp
Environmental & Regulatory,Regulatory Services,Housing and Environmental Health ,Supplies & Services,Grants & Subscriptions,Subscriptions,28/08/2014,133816,898.15,Wolters Kluwer (Uk) Limited
Environmental & Regulatory,Regulatory Services,Housing and Environmental Health ,Supplies & Services,Miscellaneous Expenses,Kennel fees,14/08/2014,132931,840,Anton Vets Ltd
Cultural & Related,Culture & Heritage,Community and Leisure ,Supplies & Services,Services,Tutors,27/08/2014,133398,1010,Personal data - Data Protection Act 1998
Central Services to the Public,Management & Support Services,Estates and Economic Development ,Supplies & Services,Communications & Computing,Telephone Tracking System,21/08/2014,132750,60,Ctrack Uk Limited
Environmental & Regulatory,Regulatory Services,Estates and Economic Development ,Supplies & Services,Communications & Computing,Telephone Tracking System,21/08/2014,132750,20,Ctrack Uk Limited
Central Services to the Public,Management & Support Services,IT,Supplies & Services,Communications & Computing,Land Line Telephone Charges,14/08/2014,132909,867.65,Virgin Media Payments Ltd
Central Services to the Public,Management & Support Services,Environmental,Transport Related Expenditure,Direct Transport Costs,Repair Materials,07/08/2014,131746,871.6,Dennis Eagle Ltd
Central Services to the Public,Management & Support Services,Estates and Economic Development ,Supplies & Services,"Equipment, Furniture & Materials",Purchase Equip + Materials,21/08/2014,133518,877,Harrison Flagpoles
Central Services to the Public,Management & Support Services,Finance,Supplies & Services,"Printing, Stationery & General Office Expenses",Postage Costs,07/08/2014,132322,914.28,Tnt Post South West Ltd
Central Services to the Public,Management & Support Services,Housing and Environmental Health ,Supplies & Services,Miscellaneous Expenses,Medical Fees,14/08/2014,132691,300,Occupational Health Consultancy Ltd
Central Services to the Public,Management & Support Services,Community and Leisure ,Supplies & Services,Miscellaneous Expenses,Medical Fees,14/08/2014,132691,165,Occupational Health Consultancy Ltd
Planning & Development,Development Control,Planning & Building,Supplies & Services,Miscellaneous Expenses,Medical Fees,14/08/2014,132691,465,Occupational Health Consultancy Ltd
Cultural & Related,Open Spaces,Environmental,Transport Related Expenditure,Direct Transport Costs,Repair Materials,14/08/2014,132762,930.94,T H White Ltd
Central Services to the Public,Management & Support Services,Estates and Economic Development ,Third Party Payments,Other Establishments,Private Contractors,14/08/2014,132861,958.99,Options Flooring Ltd
Environmental & Regulatory,Street Cleansing (not chargeable to Highways),Environmental,Employees,Indirect Employee Expenses,Agency Staff - Waged Posts,21/08/2014,133043,968.42,365 Supply Ltd
"Highways, Roads & Transport",Highways and roads - maintenance,Plan Pol & Transport,Premises related Expenditure,Repairs Alterations & Maintenance of Buildings,Highways Repairs,07/08/2014,132084,976.5,Signway Supplies (Datchet Ltd)
Central Services to the Public,Management & Support Services,Estates and Economic Development ,Third Party Payments,Other Establishments,Private Contractors,21/08/2014,132857,998,Purbeck Civil Engineering Limited
Planning & Development,Economic Development,Estates and Economic Development ,Supplies & Services,"Equipment, Furniture & Materials",Purchase Equip + Materials,14/08/2014,132903,1000,Towns Alive
Cultural & Related,Culture & Heritage,Community and Leisure ,Supplies & Services,Services,Project Consultancy - Policy,21/08/2014,133426,1200,Personal data - Data Protection Act 1998
Central Services to the Public,Elections,Legal & Democratic,Supplies & Services,"Printing, Stationery & General Office Expenses",Postage Costs,28/08/2014,133523,1020,Financial Data Management Plc
"Highways, Roads & Transport",Public Transport,Plan Pol & Transport,Third Party Payments,Transport Operators in Respect of Concessionary Fares,Voluntary Orgs Reimbursement,21/08/2014,133014,1245,Andover Neighbourcare
Central Services to the Public,Management & Support Services,Estates and Economic Development ,Premises related Expenditure,Water Services,Water And Sewerage Charges,21/08/2014,133510,1315.4,Southern Water
Central Services to the Public,Management & Support Services,Estates and Economic Development ,Third Party Payments,Other Establishments,Private Contractors,21/08/2014,132858,1100,Purbeck Civil Engineering Limited
Cultural & Related,Open Spaces,Environmental,Third Party Payments,Other Establishments,Private Contractors,28/08/2014,133929,1320.94,Ivan Gibson Agricultural Contractor
Cultural & Related,Culture & Heritage,Community and Leisure ,Premises related Expenditure,Energy Costs,Electricity,14/08/2014,132715,1114.15,Sparsholt College Hampshire
External Trading Accounts,Industrial Estates,Estates and Economic Development ,Premises related Expenditure,Water Services,Water And Sewerage Charges,14/08/2014,133037,1342.64,Southern Water
Environmental & Regulatory,Waste management,Environmental,Employees,Indirect Employee Expenses,Agency Staff - Waged Posts,28/08/2014,133829,1171.6,365 Supply Ltd
Planning & Development,Planning Policy,Plan Pol & Transport,Supplies & Services,Services,Project Consultancy - Policy,07/08/2014,131333,1200,Personal data - Data Protection Act 1998
Central Services to the Public,Management & Support Services,Estates and Economic Development ,Premises related Expenditure,Energy Costs,Gas,21/08/2014,132122,1223.15,Total Gas & Power Ltd
Environmental & Regulatory,Waste management,Environmental,Employees,Indirect Employee Expenses,Agency Staff - Waged Posts,07/08/2014,132363,1223.47,365 Supply Ltd
Planning & Development,Community Development,Community and Leisure ,Supplies & Services,Grants & Subscriptions,Grants,20/08/2014,133378,1500,Three Rivers Community Rail Partnership
Planning & Development,Community Development,Community and Leisure ,Supplies & Services,Grants & Subscriptions,Grants,20/08/2014,133380,1500,Golden Oldies
Cultural & Related,Recreation & Sport,Community and Leisure ,Supplies & Services,Services,Coaches Fees,14/08/2014,131076,1500,Valley Leisure Ltd
Central Services to the Public,Management & Support Services,Finance,Supplies & Services,"Printing, Stationery & General Office Expenses",Postage Costs,07/08/2014,131200,1253.55,Tnt Post South West Ltd
Planning & Development,Planning Policy,Plan Pol & Transport,Supplies & Services,Grants & Subscriptions,Grants,21/08/2014,133491,1538.84,Hampshire County Council
Planning & Development,Development Control,Planning & Building,Employees,Indirect Employee Expenses,Temporary Staff,28/08/2014,132912,1295,Hays Specialist Recruitment
Central Services to the Public,Management & Support Services,Finance,Supplies & Services,"Printing, Stationery & General Office Expenses",Postage Costs,07/08/2014,131644,1303.88,Tnt Post South West Ltd
Planning & Development,Development Control,Planning & Building,Employees,Indirect Employee Expenses,Temporary Staff,28/08/2014,133277,1319.75,Hays Specialist Recruitment
Central Services to the Public,Management & Support Services,Estates and Economic Development ,Third Party Payments,Other Establishments,Private Contractors,28/08/2014,133800,1320.1,Andover Glass Works Ltd
Planning & Development,Development Control,Planning & Building,Employees,Indirect Employee Expenses,Temporary Staff,14/08/2014,132097,1328.75,Hays Specialist Recruitment
"Highways, Roads & Transport",Public Transport,Plan Pol & Transport,Third Party Payments,Transport Operators in Respect of Concessionary Fares,Voluntary Orgs Reimbursement,07/08/2014,132489,1595,Romsey Good Neighbours
Environmental & Regulatory,Regulatory Services,Housing and Environmental Health ,Third Party Payments,Other Establishments,Private Contractors,14/08/2014,132326,1608,Cedar Pest
Central Services to the Public,Management & Support Services,Community and Leisure ,Supplies & Services,Grants & Subscriptions,Grants,07/08/2014,132470,1700,Friends Of North Baddesley Library
Central Services to the Public,Management & Support Services,Community and Leisure ,Supplies & Services,Grants & Subscriptions,Grants,07/08/2014,132479,1706.16,Knightwood Youth Club
Central Services to the Public,Emergency Planning,Corporate & Democratic,Supplies & Services,Grants & Subscriptions,Grants,21/08/2014,133548,1746,Personal data - Data Protection Act 1998
Environmental & Regulatory,Regulatory Services,Housing and Environmental Health ,Supplies & Services,Grants and subscriptions,Capital Grants,07/08/2014,132490,1749,Prism Medical Uk
Central Services to the Public,Local Tax Collection,Revenues,Supplies & Services,Miscellaneous Expenses,All Pay Fees,07/08/2014,132331,1730.26,Allpay Limited
Cultural & Related,Open Spaces,Environmental,Transport Related Expenditure,Direct Transport Costs,Tyres,21/08/2014,132376,1472.09,Ats Euromaster Limited
Central Services to the Public,Management & Support Services,Community and Leisure ,Supplies & Services,Grants & Subscriptions,Grants,07/08/2014,132474,1783.08,Princess Royal Trust For Carers Hampshire
Environmental & Regulatory,Community Development,Community and Leisure ,Supplies & Services,Services,Coaches Fees,28/08/2014,133808,1500,Maverick Industries Ltd
Central Services to the Public,Management & Support Services,Community and Leisure ,Supplies & Services,Grants & Subscriptions,Grants,07/08/2014,132478,1833.76,Augusta Park Community Association
Environmental & Regulatory,Street Cleansing (not chargeable to Highways),Environmental,Employees,Indirect Employee Expenses,Agency Staff - Waged Posts,07/08/2014,132297,1548.57,365 Supply Ltd
Central Services to the Public,Management & Support Services,Estates and Economic Development ,Third Party Payments,Other Establishments,Contract Catering,28/08/2014,133016,1559.25,Edwards And Ward Ltd
Environmental & Regulatory,Regulatory Services,Housing and Environmental Health ,Supplies & Services,Grants and subscriptions,Capital Grants,21/08/2014,133562,1877.5,Liftability Ltd
Environmental & Regulatory,Waste management,Environmental,Transport Related Expenditure,Direct Transport Costs,Tyres,21/08/2014,132376,1584.89,Ats Euromaster Limited
Environmental & Regulatory,Waste management,Environmental,Transport Related Expenditure,Direct Transport Costs,Diesel,28/08/2014,133503,1585.49,Fuel Card Services Ltd
Central Services to the Public,Management & Support Services,IT,Supplies & Services,Communications & Computing,Hardware Maintenance,21/08/2014,133494,1586.64,Konica Minolta Business Soltns (Uk) Ltd
Central Services to the Public,Management & Support Services,Environmental,Transport Related Expenditure,Direct Transport Costs,Oils,07/08/2014,132304,1607,Fuchs Lubricants (Uk) Plc
Environmental & Regulatory,Regulatory Services,Housing and Environmental Health ,Supplies & Services,Grants and subscriptions,Capital Grants,28/08/2014,133962,1942.5,Liftability Ltd
External Trading Accounts,Industrial Estates,Estates and Economic Development ,Premises related Expenditure,Repairs Alterations & Maintenance of Buildings,Planned Maintenance - Non Est,07/08/2014,132078,1640.58,The Alarming Company
"Highways, Roads & Transport",Public Transport,Plan Pol & Transport,Third Party Payments,Transport Operators in Respect of Concessionary Fares,Voluntary Orgs Reimbursement,14/08/2014,132335,1977,Andover Neighbourcare
Central Services to the Public,Management & Support Services,Plan Pol & Transport,Premises related Expenditure,Repairs Alterations & Maintenance of Buildings,General Repairs,14/08/2014,132700,1650,Land Development Services Ltd
Central Services to the Public,Management & Support Services,Community and Leisure ,Supplies & Services,Grants & Subscriptions,Grants,07/08/2014,132475,1984,Romsey & District Young Carers
Planning & Development,Community Development,Community and Leisure ,Supplies & Services,Grants & Subscriptions,Grants,21/08/2014,133544,1990,Augusta Park Community Association
Central Services to the Public,Management & Support Services,Community and Leisure ,Supplies & Services,Grants & Subscriptions,Grants,14/08/2014,132472,1993,Andover And District Mencap
Central Services to the Public,Management & Support Services,Community and Leisure ,Supplies & Services,Grants & Subscriptions,Grants,07/08/2014,132477,2000,Andover Trees United
Central Services to the Public,Management & Support Services,Community and Leisure ,Supplies & Services,Grants & Subscriptions,Grants,20/08/2014,132471,2000,(Breakers) - Treasurer
Planning & Development,Community Development,Community and Leisure ,Supplies & Services,Grants & Subscriptions,Grants,20/08/2014,133376,2000,Andover Child Contact Centre
Planning & Development,Community Development,Community and Leisure ,Supplies & Services,Grants & Subscriptions,Grants,21/08/2014,133546,2000,Picket Twenty Community Association
Central Services to the Public,Management & Support Services,Community and Leisure ,Supplies & Services,Grants & Subscriptions,Grants,07/08/2014,132473,2000,Romsey Youth Council
Planning & Development,Community Development,Community and Leisure ,Supplies & Services,Grants & Subscriptions,Grants,21/08/2014,133543,2000,Home-Start Andover & District
Central Services to the Public,Management & Support Services,Estates and Economic Development ,Third Party Payments,Other Establishments,Private Contractors,07/08/2014,132371,1675,Sonic Scaffolding 2000 Ltd
Planning & Development,Development Control,Planning & Building,Supplies & Services,"Printing, Stationery & General Office Expenses",Stationery,14/08/2014,132137,1164.73,Supplies Team Ltd
Planning & Development,Development Control,Planning & Building,Supplies & Services,"Printing, Stationery & General Office Expenses",Print Consumables,14/08/2014,132137,549.69,Supplies Team Ltd
Central Services to the Public,Management & Support Services,Estates and Economic Development ,Third Party Payments,Other Establishments,Private Contractors,07/08/2014,132293,1724,Signway Supplies (Datchet Ltd)
Environmental & Regulatory,Waste management,Environmental,Supplies & Services,"Printing, Stationery & General Office Expenses",External Printing,07/08/2014,132083,1750,Vernham Labels Ltd
Environmental & Regulatory,Waste management,Environmental,Employees,Indirect Employee Expenses,Agency Staff - Waged Posts,14/08/2014,132773,1762.71,365 Supply Ltd
Central Services to the Public,Management & Support Services,Estates and Economic Development ,Third Party Payments,Other Establishments,Contract Catering,28/08/2014,133015,1837.31,Edwards And Ward Ltd
Central Services to the Public,Management & Support Services,IT,Support Services,IT,IT software licences,21/08/2014,133285,1863.79,Phoenix Software Ltd
Central Services to the Public,Management & Support Services,Finance,Supplies & Services,"Printing, Stationery & General Office Expenses",Postage Costs,21/08/2014,132921,1909.11,Tnt Post South West Ltd
Central Services to the Public,Elections,Legal & Democratic,Supplies & Services,"Printing, Stationery & General Office Expenses",Postage Costs,14/08/2014,132719,1950,Financial Data Management Plc
Cultural & Related,Recreation & Sport,Community and Leisure ,Supplies & Services,"Equipment, Furniture & Materials",Purchase Equip + Materials,07/08/2014,130410,599,Bishop Sports & Leisure
Cultural & Related,Recreation & Sport,Community and Leisure ,Premises related Expenditure,Grounds Maintenance Costs,Gm - Additional Works,07/08/2014,130410,1198,Bishop Sports & Leisure
Cultural & Related,Recreation & Sport,Community and Leisure ,Supplies & Services,"Equipment, Furniture & Materials",Purchase Equip + Materials,07/08/2014,130410,176.9,Bishop Sports & Leisure
Environmental & Regulatory,Street Cleansing (not chargeable to Highways),Environmental,Employees,Indirect Employee Expenses,Agency Staff - Waged Posts,07/08/2014,132298,2071.59,365 Supply Ltd
Environmental & Regulatory,Regulatory Services,Housing and Environmental Health ,Supplies & Services,Miscellaneous Expenses,Health And Safety,14/08/2014,132924,2575,Cornerstone Barristers
Cultural & Related,Recreation & Sport,Community and Leisure ,Supplies & Services,"Equipment, Furniture & Materials",Purchase Equip + Materials,07/08/2014,130411,2192.1,Bishop Sports & Leisure
"Highways, Roads & Transport",Parking Services,Plan Pol & Transport,Supplies & Services,Communications & Computing,Computer Software,14/08/2014,132352,2250,Imperial Civil Enforcement Solutions
Central Services to the Public,Management & Support Services,Estates and Economic Development ,Supplies & Services,"Equipment, Furniture & Materials",Purchase Materials (Job Cost),07/08/2014,132080,2276,Cjs Portsmouth Ltd
Planning & Development,Economic Development,Estates and Economic Development ,Supplies & Services,Grants & Subscriptions,Grants,14/08/2014,132902,2325,Heartflood Ltd
Environmental & Regulatory,Regulatory Services,Housing and Environmental Health ,Supplies & Services,Grants and subscriptions,Capital Grants,14/08/2014,133066,2966.33,P Welbourne-Jones Ltd
Planning & Development,Community Development,Community and Leisure ,Supplies & Services,Grants & Subscriptions,Grants,28/08/2014,133969,3000,Age Uk Andover & District
Planning & Development,Building Control,Planning & Building,Transport Related Expenditure,Contract Hire and Operating Leases,Officer lease cars,28/08/2014,133970,3005.58,Arnold Clark Finance Ltd
Planning & Development,Building Control,Planning & Building,Transport Related Expenditure,Contract Hire and Operating Leases,Officer lease cars,28/08/2014,133971,3005.58,Arnold Clark Finance Ltd
Planning & Development,Building Control,Planning & Building,Transport Related Expenditure,Contract Hire and Operating Leases,Officer lease cars,28/08/2014,133972,3005.58,Arnold Clark Finance Ltd
Cultural & Related,Culture & Heritage,Community and Leisure ,Supplies & Services,Miscellaneous Expenses,Booking Of Acts,07/08/2014,132098,2521.88,Ballet Theatre Uk
Planning & Development,Economic Development,Estates and Economic Development ,Supplies & Services,Grants & Subscriptions,Grants,07/08/2014,132459,2532.9,Heartflood Ltd
Environmental & Regulatory,Regulatory Services,Housing and Environmental Health ,Supplies & Services,Grants and subscriptions,Capital Grants,21/08/2014,133563,3096.26,Nhp (Romsey) Ltd
Planning & Development,Community Development,Community and Leisure ,Supplies & Services,Grants & Subscriptions,Grants,20/08/2014,133414,3141.46,4th Andover Scout Group Hut Fund
Cultural & Related,Recreation & Sport,Community and Leisure ,Third Party Payments,Private contractors,Main Contractor Costs,06/08/2014,130330,2650,Pop Up Power Supplies Ltd
Central Services to the Public,Management & Support Services,Environmental,Transport Related Expenditure,Direct Transport Costs,Diesel Recharge ,28/08/2014,133833,2720.01,Wessex Petroleum Limited
Planning & Development,Community Development,Estates and Economic Development ,Supplies & Services,"Equipment, Furniture & Materials",Equipment Hire,21/08/2014,131742,3291,Marston Robing Limited
External Trading Accounts,Industrial Estates,Estates and Economic Development ,Premises related Expenditure,Repairs Alterations & Maintenance of Buildings,Planned Maintenance - Non Est,07/08/2014,132077,2783.91,The Alarming Company
Central Services to the Public,Management & Support Services,Environmental,Transport Related Expenditure,Direct Transport Costs,Diesel,28/08/2014,133272,2826.25,Wessex Petroleum Limited
Environmental & Regulatory,Waste management,Environmental,Supplies & Services,"Equipment, Furniture & Materials",Purchase Equip + Materials,21/08/2014,133386,2900,J & H M Dickson Ltd
Planning & Development,Community Development,Community and Leisure ,Supplies & Services,Grants & Subscriptions,Grants,13/08/2014,132954,3500,Enham Trust
Central Services to the Public,Management & Support Services,Estates and Economic Development ,Supplies & Services,"Equipment, Furniture & Materials",Purchase Materials (Job Cost),28/08/2014,133791,2924.15,Edmundson Electrical Ltd
Central Services to the Public,Management & Support Services,Estates and Economic Development ,Transport Related Expenditure,Direct Transport Costs,Diesel,28/08/2014,133503,78.65,Fuel Card Services Ltd
Environmental & Regulatory,Regulatory Services,Estates and Economic Development ,Transport Related Expenditure,Direct Transport Costs,Diesel,28/08/2014,133503,47.91,Fuel Card Services Ltd
Environmental & Regulatory,Regulatory Services,Housing and Environmental Health ,Transport Related Expenditure,Direct Transport Costs,Diesel,28/08/2014,133503,54.31,Fuel Card Services Ltd
"Highways, Roads & Transport",Highways and roads - maintenance,Plan Pol & Transport,Transport Related Expenditure,Contract Hire and Operating Leases,Officer lease cars,28/08/2014,133818,3600.55,Inchcape Fleet Solutions Ltd
Central Services to the Public,Management & Support Services,Environmental,Transport Related Expenditure,Direct Transport Costs,Diesel,07/08/2014,131857,3097.24,Wessex Petroleum Limited
Environmental & Regulatory,Regulatory Services,Housing and Environmental Health ,Transport Related Expenditure,Direct Transport Costs,Tyres,21/08/2014,132376,59.94,Ats Euromaster Limited
Environmental & Regulatory,Regulatory Services,Housing and Environmental Health ,Supplies & Services,Grants and subscriptions,Capital Grants,14/08/2014,133059,3898.75,Aster Property
Central Services,Corporate & Democratic Core,Corporate & Democratic,Supplies & Services,Communications & Computing,Computer Software,21/08/2014,131511,3282,Advanced Business Solutions
"Highways, Roads & Transport",Parking Services,Plan Pol & Transport,Supplies & Services,"Equipment, Furniture & Materials",Purchase Equip + Materials,28/08/2014,133928,3307,Cale Briparc Ltd
Central Services,Corporate & Democratic Core,Corporate & Democratic,Supplies & Services,Grants & Subscriptions,Subscriptions,28/08/2014,133406,3341.84,Idox Software Ltd
Central Services to the Public,Management & Support Services,Plan Pol & Transport,Premises related Expenditure,Repairs Alterations & Maintenance of Buildings,General Repairs,21/08/2014,132701,3345,Caroway Building & Civil Engineering
Planning & Development,Community Development,Community and Leisure ,Supplies & Services,Grants & Subscriptions,Grants,28/08/2014,133817,4143.43,Pearl & Coutts Ltd
"Highways, Roads & Transport",Parking Services,Plan Pol & Transport,Supplies & Services,Services,Professional Fees,21/08/2014,133013,3467.72,G4s Cash Services (Uk) Ltd
Central Services to the Public,Management & Support Services,Plan Pol & Transport,Premises related Expenditure,Repairs Alterations & Maintenance of Buildings,General Repairs,14/08/2014,132686,3574.29,Caroway Building & Civil Engineering
Central Services to the Public,Management & Support Services,Estates and Economic Development ,Supplies & Services,"Equipment, Furniture & Materials",Purchase Materials (Job Cost),28/08/2014,133795,3575,A J Wilsons
Central Services to the Public,Management & Support Services,Estates and Economic Development ,Supplies & Services,"Equipment, Furniture & Materials",Purchase Materials (Job Cost),07/08/2014,132295,3695,A J Wilsons
Planning & Development,Community Development,Community and Leisure ,Supplies & Services,Grants & Subscriptions,Grants,14/08/2014,133064,4447.5,Nether Wallop Parish Council
Environmental & Regulatory,Regulatory Services,Housing and Environmental Health ,Supplies & Services,Grants and subscriptions,Capital Grants,21/08/2014,133564,4477,Hampshire Mobility Services
Central Services to the Public,Management & Support Services,Estates and Economic Development ,Third Party Payments,Other Establishments,Private Contractors,07/08/2014,132372,3750,Temple Lifts Ltd
Central Services to the Public,Management & Support Services,Legal & Democratic,Transport Related Expenditure,Contract Hire and Operating Leases,Officer lease cars,28/08/2014,133531,4549.21,Arnold Clark Finance Ltd
Environmental & Regulatory,Regulatory Services,Housing and Environmental Health ,Supplies & Services,Grants and subscriptions,Capital Grants,14/08/2014,133056,4691,Bentley Mobility Services
Environmental & Regulatory,Regulatory Services,Housing and Environmental Health ,Supplies & Services,Grants and subscriptions,Capital Grants,14/08/2014,133057,4749.17,J D Codd Ltd
Cultural & Related,Open Spaces,Community and Leisure ,Supplies & Services,"Equipment, Furniture & Materials",Purchase Equip + Materials,28/08/2014,131517,2283,Bishop Sports & Leisure
Cultural & Related,Open Spaces,Community and Leisure ,Supplies & Services,"Equipment, Furniture & Materials",Purchase Equip + Materials,28/08/2014,131517,1811.2,Bishop Sports & Leisure
Central Services to the Public,Management & Support Services,Legal & Democratic,Supplies & Services,Grants & Subscriptions,Subscriptions,28/08/2014,133848,4160,Thomson Reuters
Central Services to the Public,Management & Support Services,Finance,Supplies & Services,"Printing, Stationery & General Office Expenses",Postage Costs,14/08/2014,133069,5000,Neopost Ltd
Central Services to the Public,Emergency Planning,Corporate & Democratic,Supplies & Services,Grants & Subscriptions,Grants,07/08/2014,132492,5000,Personal data - Data Protection Act 1998
Central Services to the Public,Emergency Planning,Corporate & Democratic,Supplies & Services,Grants & Subscriptions,Grants,20/08/2014,133417,5000,Personal data - Data Protection Act 1998
Central Services to the Public,Management & Support Services,Environmental,Transport Related Expenditure,Direct Transport Costs,Diesel,07/08/2014,131858,4209.92,Wessex Petroleum Limited
Cultural & Related,Recreation & Sport,Community and Leisure ,Third Party Payments,Private contractors,Main Contractor Costs,14/08/2014,132278,4420,The Genesis Design Studio Ltd
Central Services to the Public,Management & Support Services,Estates and Economic Development ,Third Party Payments,Other Establishments,Private Contractors,28/08/2014,133802,4447,Tls Fire & Security Llp
Central Services to the Public,Management & Support Services,Environmental,Transport Related Expenditure,Direct Transport Costs,Diesel,28/08/2014,133273,4567.77,Wessex Petroleum Limited
Central Services to the Public,Management & Support Services,Plan Pol & Transport,Supplies & Services,"Equipment, Furniture & Materials",Purchase Equip + Materials,07/08/2014,131864,4658.4,Signway Supplies (Datchet Ltd)
Planning & Development,Development Control,Planning & Building,Supplies & Services,Services,Project Consultancy - Policy,27/08/2014,133490,4800,Lambert Smith Hampton
"Highways, Roads & Transport",Parking Services,Plan Pol & Transport,Supplies & Services,Services,Professional Fees,28/08/2014,133383,4825.57,G4s Cash Services (Uk) Ltd
Central Services to the Public,Local Land Charges,Legal & Democratic,Supplies & Services,Miscellaneous Expenses,Land Charges Fees,21/08/2014,132919,5912.05,Hampshire County Council
Planning & Development,Community Development,Community and Leisure ,Supplies & Services,Grants & Subscriptions,Grants,28/08/2014,133968,6000,Andover Neighbourcare
Planning & Development,Community Development,Community and Leisure ,Supplies & Services,Grants & Subscriptions,Grants,14/08/2014,133062,6000,Romsey Town Council
"Highways, Roads & Transport",Parking Services,Plan Pol & Transport,Supplies & Services,Services,Professional Fees,07/08/2014,131320,5015.18,G4s Cash Services (Uk) Ltd
Central Services to the Public,Management & Support Services,Estates and Economic Development ,Third Party Payments,Other Establishments,Private Contractors,07/08/2014,132081,5415,Clc Contractors Ltd
Environmental & Regulatory,Waste management,Environmental,Supplies & Services,"Equipment, Furniture & Materials",Purchase Equip + Materials,28/08/2014,133927,5590.5,Egbert H Taylor & Co Ltd
Central Services,Corporate & Democratic Core,Corporate & Democratic,Supplies & Services,"Equipment, Furniture & Materials",Purchase Equip + Materials,21/08/2014,132281,5980,Prosigns (Uk)
"Highways, Roads & Transport",Parking Services,Plan Pol & Transport,Supplies & Services,Communications & Computing,Computer Software,07/08/2014,131833,6048,Cale Briparc Ltd
Environmental & Regulatory,Waste management,Environmental,Supplies & Services,Miscellaneous Expenses,Recycling Bank Emptying,07/08/2014,132133,6319.39,Fcc Recycling (Uk) Ltd
Central Services to the Public,Management & Support Services,Plan Pol & Transport,Premises related Expenditure,Repairs Alterations & Maintenance of Buildings,General Repairs,28/08/2014,133844,6999.73,Hampshire County Council
Central Services to the Public,Management & Support Services,Estates and Economic Development ,Third Party Payments,Other Establishments,Private Contractors,07/08/2014,132357,7440,Pci Comms
Central Services to the Public,Management & Support Services,Estates and Economic Development ,Third Party Payments,Other Establishments,Private Contractors,07/08/2014,132294,7965,A J Wilsons
External Trading Accounts,Industrial Estates,Estates and Economic Development ,Premises related Expenditure,Water Services,Water And Sewerage Charges,07/08/2014,132358,10119.45,Southern Water
Central Services to the Public,Management & Support Services,IT,Supplies & Services,Communications & Computing,Hardware Maintenance,21/08/2014,132354,8541.8,Empowered Sms Ltd T/A Neptune
Planning & Development,Economic Development,Estates and Economic Development ,Supplies & Services,"Printing, Stationery & General Office Expenses",Training Courses,07/08/2014,132073,13000,Shenton Business Group
Central Services to the Public,Management & Support Services,Estates and Economic Development ,Third Party Payments,Other Establishments,Private Contractors,21/08/2014,133047,11635,Andover Glass Works Ltd
Cultural & Related,Open Spaces,Environmental,Supplies & Services,"Equipment, Furniture & Materials",Equipment Lease Rentals,14/08/2014,132096,11900,De Lage Landen Leasing Ltd
Cultural & Related,Recreation & Sport,Community and Leisure ,Third Party Payments,Private contractors,Main Contractor Costs,07/08/2014,132091,12350,Maverick Industries Ltd
Central Services to the Public,Management & Support Services,Estates and Economic Development ,Third Party Payments,Other Establishments,Private Contractors,07/08/2014,132370,13560,Oakleaf Surveying Ltd
Central Services to the Public,Management & Support Services,Estates and Economic Development ,Third Party Payments,Other Establishments,Private Contractors,14/08/2014,132863,16819.82,Options Flooring Ltd
Central Services to the Public,Elections,Legal & Democratic,Supplies & Services,"Printing, Stationery & General Office Expenses",Postage Costs,14/08/2014,132718,20462.22,Financial Data Management Plc
Central Services,Corporate & Democratic Core,Corporate & Democratic,Supplies & Services,Miscellaneous Expenses,External Audit Fees,14/08/2014,132716,21573,Ernst & Young Llp
"Highways, Roads & Transport",Parking Services,Plan Pol & Transport,Supplies & Services,Services,Professional Fees,28/08/2014,133958,32861.52,Friends Life Company Ltd
Cultural & Related,Recreation & Sport,Community and Leisure ,Third Party Payments,Other Establishments,ALC Management Contract-TVL,07/08/2014,131078,34000,Valley Leisure Ltd
Cultural & Related,Recreation & Sport,Community and Leisure ,Third Party Payments,Other Establishments,ALC Management Contract-TVL,28/08/2014,132916,34000,Valley Leisure Ltd
Environmental & Regulatory,Regulatory Services,Estates and Economic Development ,Premises related Expenditure,Cleaning and domestic supplies,Contract Cleaning - Non Estates,28/08/2014,133958,12779.48,Friends Life Company Ltd
Central Services to the Public,Management & Support Services,Estates and Economic Development ,Third Party Payments,Private contractors,Main Contractor Costs,14/08/2014,132856,52059.35,Kier Facilities Services Ltd
